bitfinex/quotes_SOLUSD_20251218
["timestamp","ask_amount","ask_price","bid_price","bid_amount"]
[1766084744089,9.06,121.06,121.01,7.22019396]
[1766084744394,9.06,121.06,121.02,7.22019396]
[1766084744922,14.78015936,121.07,121.02,7.22019396]
[1766084745092,9.06,121.06,121.02,7.22019396]
[1766084745416,23.84084626,121.06,121.0,7.22019396]
[1766084745716,9.06,121.06,121.01,6.52019396]
[1766084745912,9.06,121.06,121.02,0.7]
[1766084746115,17.32037996,121.06,121.02,0.7]
[1766084746418,103.8,121.11,121.02,0.7]
[1766084746419,15.33013888,121.11,121.06,0.7]
[1766084746716,6.52019396,121.09,121.04,6.52019396]
[1766084746895,15.58019396,121.08,121.03,7.22019396]
[1766084747405,0.03,121.1,121.0,31.09763684]
[1766084747406,8.25806731,121.1,121.05,7.22019396]
[1766084747716,9.06,121.11,121.08,0.7]
[1766084747892,9.06,121.11,121.08,7.22019396]
[1766084748212,9.06,121.11,121.08,0.7]
[1766084748686,9.06,121.11,121.09,0.7]
[1766084749107,23.585215,121.14,121.09,7.22019396]
[1766084749297,8.83994492,121.12,121.01,0.7]
[1766084749594,8.83994492,121.12,121.02,0.7]
[1766084749595,6.52019396,121.09,121.02,0.7]
[1766084749803,6.52019396,121.09,121.01,10.43767296]
[1766084749804,9.06,121.08,121.04,0.7]
[1766084750000,15.58019396,121.08,121.04,0.7]
[1766084750503,9.06,121.08,121.04,0.7]
[1766084750699,19.24761788,121.12,121.05,0.7]
[1766084750926,9.06,121.11,121.07,6.52019396]
[1766084751094,15.58019396,121.13,121.04,8.26157038]
[1766084751406,6.52019396,121.11,121.07,0.7]
[1766084751800,17.09621968,121.12,121.05,0.7]
[1766084752001,17.09621968,121.12,121.06,7.22019396]
[1766084752204,8.25569546,121.13,121.06,6.52019396]
[1766084752409,6.52019396,121.13,121.08,0.7]
[1766084752617,6.52019396,121.11,121.06,6.52019396]
[1766084752816,9.06,121.1,121.06,0.7]
[1766084753015,9.06,121.1,121.06,7.22019396]
[1766084753196,9.06,121.1,121.06,6.52019396]
[1766084753525,9.06,121.1,121.07,7.22019396]
[1766084753906,9.06,121.1,121.07,0.7]
[1766084754125,9.06,121.1,121.07,7.22019396]
[1766084754426,9.06,121.1,121.07,0.7]
[1766084756123,9.06,121.1,121.08,0.7]
[1766084756300,8.25601371,121.13,121.08,0.7]
[1766084756301,9.06,121.11,121.08,0.7]
[1766084756703,6.52019396,121.14,121.1,0.7]
[1766084756905,8.25453056,121.15,121.08,0.7]
[1766084757106,6.52019396,121.13,121.08,0.7]
[1766084757322,8.25498798,121.14,121.08,0.7]
[1766084757526,15.58019396,121.13,121.09,0.7]
[1766084757698,9.06,121.13,121.09,0.7]
[1766084757906,6.52019396,121.16,121.11,0.7]
[1766084758213,9.06,121.15,121.12,0.7]
[1766084758413,6.52019396,121.14,121.09,6.52019396]
[1766084758612,6.52019396,121.13,121.09,0.7]
[1766084758808,9.06,121.15,121.09,0.7]
[1766084759123,6.52019396,121.13,121.09,0.7]
[1766084759309,6.52019396,121.12,121.09,0.7]
[1766084759911,15.58019396,121.11,121.06,0.7]
[1766084760127,6.52019396,121.1,121.06,0.7]
[1766084760338,15.58019396,121.11,121.06,0.7]
[1766084760517,15.58019396,121.11,121.07,0.7]
[1766084760831,15.58019396,121.11,121.02,10.43767296]
[1766084760832,31.07190069,121.16,121.08,0.7]
[1766084761035,6.72019396,121.17,121.11,6.52019396]
[1766084761215,0.2,121.17,121.14,6.52019396]
[1766084761413,0.2,121.17,121.15,0.72]
[1766084762022,0.2,121.17,121.12,0.72]
[1766084762023,6.72019396,121.17,121.12,0.72]
[1766084762223,6.52019396,121.15,121.12,0.72]
[1766084762626,38.14504128,121.17,121.13,0.72]
[1766084762627,0.2,121.17,121.13,0.72]
[1766084762832,0.2,121.17,121.14,0.72]
[1766084763022,6.72019396,121.17,121.14,0.72]
[1766084763237,8.25397599,121.16,121.11,0.72]
[1766084763428,0.2,121.17,121.13,0.72]
[1766084763627,9.26,121.17,121.14,0.72]
[1766084763832,0.2,121.17,121.14,0.72]
[1766084764638,19.61332245,121.18,121.15,0.72]
[1766084764835,10.55332245,121.17,121.12,0.72]
[1766084765337,19.61332245,121.17,121.13,0.72]
[1766084765720,18.80550927,121.18,121.13,0.72]
[1766084765919,9.06,121.17,121.13,0.72]
[1766084766134,19.61332245,121.17,121.13,0.72]
[1766084766352,9.06,121.17,121.13,0.72]
[1766084766651,9.06,121.17,121.14,0.72]
[1766084766939,19.59332245,121.2,121.16,0.72]
[1766084767335,9.04,121.21,121.17,0.72]
[1766084767540,0.2,121.23,121.18,0.72]
[1766084767845,0.2,121.23,121.19,0.72]
[1766084768053,0.2,121.23,121.21,0.72]
[1766084768421,0.2,121.25,121.21,10.55332245]
[1766084768620,0.2,121.25,121.16,28.88734473]
[1766084768621,10.55332245,121.23,121.18,11.27332245]
[1766084768919,10.55332245,121.23,121.16,8.25347217]
[1766084768920,0.2,121.25,121.17,0.72]
[1766084769123,0.2,121.25,121.22,0.72]
[1766084769528,0.2,121.25,121.22,10.55332245]
[1766084769734,0.2,121.25,121.23,0.72]
[1766084769936,0.2,121.25,121.19,0.72]
[1766084770138,0.2,121.25,121.22,0.72]
[1766084770445,9.04,121.28,121.24,0.72]
[1766084770650,8.44473964,121.29,121.19,0.72]
[1766084770854,10.55332245,121.24,121.18,0.72]
[1766084771051,10.55332245,121.22,121.17,11.27332245]
[1766084771349,10.55332245,121.21,121.17,0.72]
[1766084771744,9.04,121.22,121.17,0.72]
[1766084771931,10.55332245,121.2,121.17,0.72]
[1766084772133,10.55332245,121.2,121.15,0.72]
[1766084772332,9.04,121.2,121.16,0.72]
[1766084772532,10.55332245,121.21,121.16,0.72]
[1766084772748,19.59332245,121.21,121.16,0.72]
[1766084773138,10.55332245,121.18,121.12,18.80942701]
[1766084773336,10.55332245,121.19,121.14,0.72]
[1766084773549,10.55332245,121.19,121.15,0.72]
[1766084773744,9.04,121.2,121.15,0.72]
[1766084773949,10.55332245,121.19,121.15,0.72]
[1766084774150,9.04,121.2,121.15,0.72]
[1766084774382,19.59332245,121.21,121.16,0.72]
[1766084774562,9.04,121.21,121.16,0.72]
[1766084774732,8.24957149,121.22,121.17,0.72]
[1766084774733,10.55332245,121.22,121.17,0.72]
[1766084774936,10.55332245,121.21,121.17,0.72]
[1766084775139,9.04,121.22,121.17,0.72]
[1766084775345,10.55332245,121.2,121.17,0.72]
[1766084775770,17.29003035,121.22,121.17,0.72]
[1766084775771,10.55332245,121.19,121.17,0.72]
[1766084776238,10.55332245,121.18,121.12,8.25596625]
[1766084776442,10.55332245,121.17,121.13,0.72]
[1766084776662,10.55332245,121.16,121.13,0.72]
[1766084776856,10.55332245,121.14,121.09,0.72]
[1766084777053,10.55332245,121.13,121.09,0.72]
[1766084777257,10.55332245,121.14,121.09,0.72]
[1766084777466,10.55332245,121.14,121.09,11.27332245]
[1766084777669,10.55332245,121.15,121.1,0.72]
[1766084777965,0.6,121.16,121.1,0.72]
[1766084777966,10.55332245,121.13,121.1,0.72]
[1766084778263,17.89362671,121.16,121.1,0.72]
[1766084778264,10.55332245,121.14,121.1,0.72]
[1766084779238,17.89362671,121.16,121.1,0.72]
[1766084779563,10.55332245,121.14,121.1,0.72]
[1766084779752,10.55332245,121.14,121.08,10.55332245]
[1766084779958,10.55332245,121.14,121.09,0.72]
[1766084780155,9.04,121.15,121.1,0.72]
[1766084780544,8.85368046,121.16,121.1,0.72]
[1766084780545,8.85360065,121.16,121.1,0.72]
[1766084780747,10.55332245,121.15,121.1,0.72]
[1766084780969,19.59332245,121.15,121.1,0.72]
[1766084781837,10.55332245,121.17,121.12,0.72]
[1766084782041,9.04,121.17,121.13,0.72]
[1766084782242,19.59332245,121.17,121.13,0.72]
[1766084782659,10.55332245,121.16,121.1,10.55332245]
[1766084782859,10.55332245,121.16,121.11,10.55332245]
[1766084783060,19.59332245,121.17,121.12,0.72]
[1766084783573,10.55332245,121.16,121.12,0.72]
[1766084783769,9.04,121.17,121.12,0.72]
[1766084783969,10.55332245,121.15,121.1,0.72]
[1766084784170,10.55332245,121.14,121.1,0.72]
[1766084784374,10.55332245,121.11,121.07,0.72]
[1766084784872,10.55332245,121.1,120.99,0.1]
[1766084785073,10.55332245,121.09,121.05,0.72]
[1766084785254,10.55332245,121.1,121.05,0.72]
[1766084785461,10.55332245,121.09,121.05,0.72]
[1766084786181,0.6,121.08,121.02,0.72]
[1766084786553,10.55332245,121.06,121.02,0.72]
[1766084786779,10.55332245,121.07,121.02,0.72]
[1766084787080,10.55332245,121.04,121.0,0.72]
[1766084787249,10.55332245,121.04,120.99,0.1]
[1766084787453,10.55332245,121.04,121.0,0.72]
[1766084787753,8.80994492,121.08,121.01,0.72]
[1766084787754,10.55332245,121.06,121.01,0.72]
[1766084787950,9.04,121.06,121.02,0.72]
[1766084788178,10.55332245,121.07,121.02,0.72]
[1766084788363,9.04,121.08,121.04,0.72]
[1766084788364,10.55332245,121.08,121.04,0.72]
[1766084789265,27.8513931,121.1,121.05,0.72]
[1766084789463,10.55332245,121.09,121.05,0.72]
[1766084790380,27.84932465,121.13,121.08,11.27332245]
[1766084790878,8.25446955,121.15,121.1,0.72]
[1766084791180,10.55332245,121.14,121.1,0.72]
[1766084791498,19.59332245,121.15,121.1,10.55332245]
[1766084791660,19.59332245,121.17,121.12,0.72]
[1766084791865,10.55332245,121.16,121.12,0.72]
[1766084792078,10.55332245,121.15,121.1,0.72]
[1766084792581,9.64,121.17,121.1,0.72]
[1766084792582,10.55332245,121.14,121.1,0.72]
[1766084792758,10.55332245,121.15,121.1,0.72]
[1766084793352,10.55332245,121.15,121.08,10.55332245]
[1766084793353,10.55332245,121.13,121.08,10.55332245]
[1766084793554,10.55332245,121.13,121.09,0.72]
[1766084793772,10.55332245,121.14,121.09,0.72]
[1766084794477,10.55332245,121.14,121.1,0.72]
[1766084794988,9.04,121.14,121.1,0.72]
[1766084795189,19.59332245,121.14,121.1,0.72]
[1766084795376,10.55332245,121.13,121.07,0.72]
[1766084795571,10.55332245,121.12,121.08,0.72]
[1766084795959,18.80916188,121.13,121.08,0.72]
[1766084796159,10.55332245,121.11,121.07,0.72]
[1766084796576,10.55332245,121.12,121.07,0.72]
[1766084796900,19.40916188,121.13,121.07,11.27332245]
[1766084797266,19.40916188,121.13,121.08,0.72]
[1766084797471,9.04,121.12,121.08,0.72]
[1766084797976,19.84761788,121.16,121.1,11.27332245]
[1766084798171,9.04,121.15,121.1,11.27332245]
[1766084798595,9.04,121.15,121.11,10.55332245]
[1766084798892,9.04,121.15,121.1,11.27332245]
[1766084799195,10.55332245,121.17,121.12,0.72]
[1766084799493,21.22962575,121.19,121.05,10.43767296]
[1766084799494,21.2265571,121.21,121.15,10.55332245]
[1766084799659,19.59332245,121.2,121.15,11.27332245]
[1766084800165,9.04,121.2,121.17,10.55332245]
[1766084800375,9.04,121.2,121.16,11.27332245]
[1766084800994,9.04,121.21,121.17,0.72]
[1766084801394,38.65000946,121.23,121.17,10.55332245]
[1766084801575,19.59332245,121.22,121.17,0.72]
[1766084801975,8.24839031,121.24,121.18,11.27332245]
[1766084802177,11.15332245,121.25,121.19,11.27332245]
[1766084802372,9.04,121.24,121.19,11.27332245]
[1766084802694,10.55332245,121.23,121.19,0.72]
[1766084803199,10.55332245,121.21,121.15,10.55332245]
[1766084803409,9.04,121.21,121.16,10.55332245]
[1766084803570,9.04,121.21,121.17,0.72]
[1766084804592,0.6,121.25,121.18,10.55332245]
[1766084804796,9.04,121.24,121.19,0.72]
[1766084805000,9.04,121.24,121.19,11.27332245]
[1766084805186,44.9577145,121.29,121.2,0.72]
[1766084805376,19.59332245,121.28,121.23,11.27332245]
[1766084805882,19.59332245,121.28,121.23,0.72]
[1766084806294,30.03099541,121.28,121.23,0.72]
[1766084806592,0.2,121.29,121.24,10.55332245]
[1766084806793,9.04,121.28,121.25,0.72]
[1766084807096,19.59332245,121.28,121.22,11.27332245]
[1766084807297,10.55332245,121.26,121.21,10.55332245]
[1766084807690,10.55332245,121.25,121.21,0.72]
[1766084807890,10.55332245,121.25,121.19,0.72]
[1766084807891,19.59332245,121.24,121.19,0.72]
[1766084808071,9.04,121.26,121.22,0.72]
[1766084808280,9.04,121.26,121.22,11.27332245]
[1766084808481,19.24761788,121.27,121.22,11.27332245]
[1766084808707,9.04,121.26,121.22,11.27332245]
[1766084809088,9.04,121.26,121.23,0.72]
[1766084809685,19.47767296,121.27,121.23,0.72]
[1766084810212,10.43767296,121.27,121.23,0.72]
[1766084810390,19.47767296,121.27,121.23,0.72]
[1766084810711,9.04,121.27,121.23,10.55332245]
[1766084811010,20.6075674,121.32,121.23,10.55332245]
[1766084811011,8.80994492,121.31,121.27,0.72]
[1766084811208,9.04,121.3,121.27,10.55332245]
[1766084811508,9.04,121.32,121.28,11.27332245]
[1766084811891,29.43324683,121.33,121.28,11.27332245]
[1766084812084,0.2,121.33,121.28,0.72]
[1766084812307,19.79332245,121.33,121.28,0.72]
[1766084812506,9.24,121.33,121.28,11.27332245]
[1766084812698,9.24,121.33,121.29,11.27332245]
[1766084813093,0.2,121.33,121.3,11.27332245]
[1766084814199,0.2,121.33,121.31,11.27332245]
[1766084814706,0.2,121.33,121.28,0.72]
[1766084814908,0.2,121.33,121.3,0.72]
[1766084815087,0.2,121.33,121.3,11.27332245]
[1766084815484,0.2,121.33,121.31,0.72]
[1766084817612,10.55332245,121.39,121.33,0.72]
[1766084817810,0.66,121.37,121.31,0.72]
[1766084818011,11.21332245,121.37,121.31,0.72]
[1766084818318,11.21332245,121.37,121.32,11.27332245]
[1766084818513,19.47767296,121.37,121.31,10.55332245]
[1766084818688,10.55332245,121.36,121.31,11.27332245]
[1766084819413,20.13767296,121.37,121.31,11.27332245]
[1766084819614,38.93027564,121.37,121.31,11.27332245]
[1766084819914,38.93027564,121.37,121.32,10.55332245]
[1766084820100,38.93027564,121.37,121.32,0.72]
[1766084820298,38.93027564,121.37,121.32,11.27332245]
[1766084820490,27.71695319,121.37,121.31,0.72]
[1766084820693,27.71695319,121.37,121.27,0.72]
[1766084820694,11.21332245,121.33,121.27,0.72]
[1766084820893,21.65099541,121.33,121.28,11.27332245]
[1766084821092,20.99099541,121.33,121.27,10.55332245]
[1766084821300,0.72,121.31,121.25,11.21332245]
[1766084821510,8.80994492,121.32,121.28,11.21332245]
[1766084821716,10.55332245,121.31,121.26,11.21332245]
[1766084821938,10.55332245,121.31,121.26,0.66]
[1766084822216,11.27332245,121.31,121.26,0.66]
[1766084822526,19.36326737,121.32,121.27,11.21332245]
[1766084823031,17.84994492,121.35,121.31,10.55332245]
[1766084823248,17.84994492,121.35,121.31,11.21332245]
[1766084823547,1.19999999,121.42,121.23,9.80994491]
[1766084823548,10.43767296,121.37,121.32,11.21332245]
[1766084823834,19.59332245,121.37,121.32,11.21332245]
[1766084824016,27.83263488,121.37,121.32,0.66]
[1766084824188,38.99030784,121.37,121.32,0.66]
[1766084824389,29.95030784,121.37,121.32,0.66]
[1766084824613,29.95030784,121.37,121.28,8.24516251]
[1766084824614,19.36326737,121.36,121.28,8.24516251]
[1766084824915,19.36326737,121.36,121.26,10.55332245]
[1766084824916,10.55332245,121.31,121.26,10.55332245]
[1766084825214,9.04,121.31,121.26,11.21332245]
[1766084825397,15.51783576,121.31,121.26,7.13783576]
[1766084825596,6.47783576,121.3,121.26,0.66]
[1766084825793,6.47783576,121.29,121.21,9.04]
[1766084826009,9.04,121.28,121.24,0.66]
[1766084826626,15.51783576,121.28,121.24,0.66]
[1766084826926,6.47783576,121.27,121.24,0.66]
[1766084827132,6.47783576,121.27,121.22,7.13783576]
[1766084827507,9.04,121.27,121.23,0.66]
[1766084827920,9.04,121.27,121.23,7.13783576]
[1766084828234,15.51783576,121.27,121.23,0.66]
[1766084828437,10.43767296,121.27,121.23,0.66]
[1766084828622,25.95550872,121.27,121.23,0.66]
[1766084829007,19.47767296,121.27,121.23,0.66]
[1766084829223,10.43767296,121.27,121.23,0.66]
[1766084829414,9.04,121.27,121.24,0.66]
[1766084830511,9.04,121.28,121.24,0.66]
[1766084831208,15.51783576,121.28,121.24,0.66]
[1766084831516,6.47783576,121.25,121.19,7.13783576]
[1766084831719,6.47783576,121.23,121.19,0.66]
[1766084831919,16.23783576,121.24,121.19,7.13783576]
[1766084832221,6.47783576,121.22,121.19,0.66]
[1766084832432,9.04,121.21,121.17,0.66]
[1766084833116,15.51783576,121.21,121.17,0.66]
[1766084833625,9.04,121.21,121.17,0.66]
[1766084834232,15.51783576,121.21,121.17,0.66]
[1766084834642,15.28778068,121.2,121.15,0.8]
[1766084834848,6.47783576,121.19,121.15,0.8]
[1766084835345,15.28778068,121.2,121.15,0.8]
[1766084835840,6.47783576,121.19,121.15,0.8]
[1766084836140,9.04,121.19,121.16,0.7]
[1766084836342,6.47783576,121.2,121.16,0.7]
[1766084836543,6.47783576,121.18,121.15,0.1]
[1766084836734,9.04,121.17,121.15,0.1]
[1766084837255,6.47783576,121.19,121.15,0.1]
[1766084837548,9.04,121.18,121.15,0.1]
[1766084837840,9.04,121.2,121.16,0.7]
[1766084838141,15.51783576,121.2,121.16,0.7]
[1766084838344,15.51783576,121.2,121.15,0.1]
[1766084838345,6.47783576,121.18,121.15,0.1]
[1766084838835,7.14783576,121.19,121.15,0.1]
[1766084839014,15.28778068,121.2,121.15,0.8]
[1766084839215,9.04,121.19,121.15,0.8]
[1766084839419,6.47783576,121.19,121.15,0.8]
[1766084839733,15.51783576,121.19,121.15,0.8]
[1766084840320,7.14783576,121.17,121.11,14.73442659]
[1766084840527,7.14783576,121.17,121.12,0.7]
[1766084840528,16.18783576,121.17,121.12,0.7]
[1766084840916,6.47783576,121.16,121.12,0.7]
[1766084841116,9.71,121.17,121.12,0.7]
[1766084841442,6.47783576,121.15,121.12,0.7]
[1766084841619,6.47783576,121.14,121.1,0.7]
[1766084842130,11.10767296,121.18,121.12,0.7]
[1766084842439,14.72897989,121.2,121.15,0.7]
[1766084842643,15.51783576,121.2,121.16,0.7]
[1766084842945,15.51783576,121.22,121.17,7.17783576]
[1766084843243,15.51783576,121.22,121.18,0.7]
[1766084843437,23.76733849,121.22,121.18,0.7]
[1766084843647,6.47783576,121.21,121.16,6.47783576]
[1766084843855,6.47783576,121.18,121.13,7.17783576]
[1766084844139,16.91550872,121.2,121.15,7.17783576]
[1766084844339,9.04,121.2,121.16,7.17783576]
[1766084844515,9.04,121.21,121.17,0.7]
[1766084844941,19.91761788,121.22,121.18,0.7]
[1766084844942,19.47767296,121.22,121.18,0.7]
[1766084845138,10.43767296,121.22,121.19,6.47783576]
[1766084845343,19.47767296,121.22,121.18,0.7]
[1766084845529,19.47767296,121.22,121.18,7.17783576]
[1766084846846,9.04,121.22,121.18,7.17783576]
[1766084847349,16.18783576,121.22,121.17,6.47783576]
[1766084847516,16.18783576,121.22,121.17,7.17783576]
[1766084848019,23.76734232,121.22,121.17,0.7]
[1766084848219,23.76734232,121.22,121.16,6.47783576]
[1766084848220,16.18783576,121.22,121.16,6.47783576]
[1766084848444,10.43767296,121.24,121.2,6.47783576]
[1766084848652,9.04,121.27,121.23,6.47783576]
[1766084848943,19.47767296,121.27,121.22,7.17783576]
[1766084849242,25.95550872,121.27,121.22,7.17783576]
[1766084849433,26.62550872,121.27,121.22,7.17783576]
[1766084849636,16.18783576,121.27,121.22,0.7]
[1766084849846,51.22505328,121.27,121.22,7.17783576]
[1766084850153,7.14783576,121.25,121.17,0.7]
[1766084850323,7.14783576,121.25,121.19,7.17783576]
[1766084850324,15.39560598,121.25,121.19,7.17783576]
[1766084850843,9.04,121.24,121.2,7.17783576]
[1766084851042,9.04,121.24,121.2,0.7]
[1766084851245,8.91777022,121.25,121.21,6.47783576]
[1766084851543,17.95777022,121.25,121.21,6.47783576]
[1766084851743,9.04,121.25,121.21,6.47783576]
[1766084852246,9.04,121.25,121.21,7.17783576]
[1766084852836,0.67,121.26,121.22,6.47783576]
[1766084852837,9.04,121.26,121.22,6.47783576]
[1766084853044,9.04,121.26,121.22,7.17783576]
[1766084853847,9.04,121.26,121.23,0.7]
[1766084854031,20.61121543,121.3,121.24,0.7]
[1766084854032,8.80994492,121.3,121.24,0.7]
[1766084854235,41.20863223,121.34,121.28,6.47783576]
[1766084854236,8.80994492,121.32,121.28,6.47783576]
[1766084854434,8.80994492,121.32,121.29,0.7]
[1766084854635,0.2,121.35,121.31,6.47783576]
[1766084854833,0.2,121.35,121.33,7.17783576]
[1766084855358,0.67,121.39,121.33,0.7]
[1766084855530,16.18783576,121.39,121.34,6.47783576]
[1766084855730,9.71,121.39,121.34,7.17783576]
[1766084856127,16.18783576,121.39,121.34,7.17783576]
[1766084856344,16.91550872,121.41,121.36,0.7]
[1766084856529,9.04,121.41,121.36,7.17783576]
[1766084856728,9.10615747,121.42,121.34,8.24130508]
[1766084856729,7.34783576,121.42,121.37,7.17783576]
[1766084857020,16.38783576,121.42,121.37,7.17783576]
[1766084857226,18.1459706,121.42,121.37,0.7]
[1766084857428,9.1059706,121.42,121.37,7.17783576]
[1766084857643,24.62380636,121.42,121.37,7.17783576]
[1766084857846,6.47783576,121.41,121.37,0.7]
[1766084858048,6.47783576,121.4,121.37,0.7]
[1766084858268,7.14783576,121.4,121.34,7.17783576]
[1766084858752,16.18783576,121.39,121.34,6.47783576]
[1766084858955,16.18783576,121.39,121.34,7.17783576]
[1766084859128,9.04,121.39,121.34,6.47783576]
[1766084859459,33.23443905,121.41,121.36,7.17783576]
[1766084859648,6.47783576,121.4,121.36,0.7]
[1766084860043,6.47783576,121.39,121.34,7.17783576]
[1766084860237,15.38509442,121.4,121.35,0.7]
[1766084860630,8.90725866,121.4,121.35,7.17783576]
[1766084860845,15.38509442,121.4,121.35,7.17783576]
[1766084861755,0.67,121.4,121.35,7.17783576]
[1766084861936,0.67,121.4,121.35,0.7]
[1766084862136,32.56459922,121.41,121.37,0.7]
[1766084862137,9.04,121.41,121.37,0.7]
[1766084862348,15.51783576,121.41,121.37,0.7]
[1766084862553,23.75462578,121.41,121.37,0.7]
[1766084863062,15.51783576,121.41,121.37,0.7]
[1766084863233,6.47783576,121.4,121.35,7.16783576]
[1766084863550,6.47783576,121.4,121.35,0.69]
[1766084863727,6.47783576,121.4,121.35,7.16783576]
[1766084863931,6.47783576,121.38,121.32,0.69]
[1766084864135,6.47783576,121.35,121.3,0.69]
[1766084864350,6.47783576,121.33,121.3,0.69]
[1766084864564,6.47783576,121.33,121.28,7.16783576]
[1766084864736,6.47783576,121.33,121.29,0.69]
[1766084865564,9.71,121.35,121.29,0.69]
[1766084865859,9.71,121.35,121.29,7.16783576]
[1766084866167,6.47783576,121.34,121.29,7.16783576]
[1766084867548,17.95066594,121.35,121.29,0.69]
[1766084867753,6.47783576,121.33,121.29,0.69]
[1766084869053,6.47783576,121.32,121.29,0.69]
[1766084869555,0.67,121.34,121.29,0.69]
[1766084869556,6.47783576,121.33,121.29,0.69]
[1766084870133,7.14783576,121.34,121.29,0.69]
[1766084870435,6.47783576,121.33,121.29,0.69]
[1766084872638,0.67,121.34,121.29,0.69]
[1766084872957,6.47783576,121.33,121.29,0.69]
[1766084873258,7.14783576,121.33,121.28,7.16783576]
[1766084873460,6.47783576,121.32,121.28,0.69]
[1766084873754,8.91150643,121.34,121.29,0.69]
[1766084873946,8.91150643,121.34,121.29,7.16783576]
[1766084873947,7.14783576,121.34,121.29,7.16783576]
[1766084874139,7.14783576,121.34,121.25,0.69]
[1766084874140,7.14783576,121.31,121.25,0.69]
[1766084874344,7.14783576,121.31,121.26,0.69]
[1766084874559,15.38990492,121.33,121.26,8.24668897]
[1766084874765,16.91550872,121.36,121.3,6.47783576]
[1766084874954,7.14783576,121.35,121.3,0.69]
[1766084875147,6.47783576,121.34,121.3,0.69]
[1766084875658,16.91550872,121.36,121.31,7.16783576]
[1766084875974,7.14783576,121.36,121.31,7.16783576]
[1766084876140,0.67,121.36,121.32,6.47783576]
[1766084876544,0.67,121.36,121.31,0.69]
[1766084876545,0.67,121.36,121.31,7.16783576]
[1766084876966,0.67,121.36,121.31,6.47783576]
[1766084877143,25.82506968,121.37,121.32,0.69]
[1766084877346,25.82506968,121.37,121.32,7.16783576]
[1766084877545,23.5264626,121.38,121.33,7.16783576]
[1766084877758,11.10767296,121.39,121.33,7.16783576]
[1766084877940,0.67,121.39,121.35,7.16783576]
[1766084878444,8.90795268,121.39,121.35,7.16783576]
[1766084879866,15.38578844,121.39,121.34,6.47783576]
[1766084880165,15.38578844,121.39,121.34,7.16783576]
[1766084880740,0.67,121.38,121.34,6.47783576]
[1766084880940,0.67,121.38,121.33,0.69]
[1766084881143,0.71,121.36,121.31,7.19783576]
[1766084881338,6.47783576,121.35,121.23,42.2417548]
[1766084881580,9.75,121.36,121.3,0.72]
[1766084881778,9.04,121.36,121.32,7.19783576]
[1766084881953,41.18389753,121.41,121.28,6.47783576]
[1766084881954,0.91,121.42,121.36,0.72]
[1766084882151,6.47783576,121.4,121.32,10.43767296]
[1766084882463,7.18783576,121.39,121.34,7.19783576]
[1766084883365,0.71,121.37,121.32,0.72]
[1766084883671,0.71,121.37,121.33,6.47783576]
[1766084883874,6.47783576,121.37,121.32,6.47783576]
[1766084884043,0.71,121.36,121.32,6.47783576]
[1766084884238,7.18783576,121.38,121.33,6.47783576]
[1766084884439,8.80994492,121.41,121.37,7.19783576]
[1766084884663,0.2,121.42,121.38,6.47783576]
[1766084884845,0.2,121.42,121.38,7.19783576]
[1766084885054,0.2,121.42,121.38,0.72]
[1766084885257,0.2,121.42,121.38,7.19783576]
[1766084885450,0.2,121.42,121.38,11.22553406]
[1766084885846,0.2,121.42,121.4,10.50553406]
[1766084886048,11.41553406,121.45,121.41,11.22553406]
[1766084886049,0.2,121.45,121.41,11.22553406]
[1766084886246,11.41553406,121.45,121.41,0.72]
[1766084886645,11.41553406,121.45,121.4,10.50553406]
[1766084886646,11.21553406,121.44,121.39,11.22553406]
[1766084886846,0.71,121.42,121.37,11.22553406]